{"text_format":"3","workbook":"xlsx","n_sheets":13,"sheets":["Inicio","Conceptos básicos","Introducción a las funciones","PROMEDIO","MIN y MAX","Fecha y hora","Unir texto y números","Instrucciones SI","BUSCARV","Funciones condicionales","Asistente para funciones","Errores de fórmula","Obtener más información"],"not_rendered":{"images":33,"defined_names":21},"read":"whole","date_system":"1900"}

{"sheet":"Inicio","index":0,"n_rows":4,"n_cols":1,"rows_kept":4}
[]
["Introducción a las fórmulas"]
["En unos pocos pasos, podrá empezar a crear fórmulas y funciones de Excel, la aplicación de hoja de cálculo más eficaz del mundo."]
["Vuelva al principio presionando CTRL+INICIO. Para empezar el recorrido, presione CTRL+AVANZAR PÁGINA."]

{"sheet":"Conceptos básicos","index":1,"n_rows":43,"n_cols":10,"rows_kept":43}
["Conceptos básicos: realizar operaciones matemáticas con Excel"]
["Puede sumar, restar, multiplicar y dividir en Excel sin tener que usar las funciones integradas. Solo tiene que usar algunos operadores básicos: +, -, *, /. Todas las fórmulas empiezan con un signo igual (=).\n",null,"Números para usar:",null,"Operación:","Fórmulas:","Respuestas:"]
["Para sumar, seleccione la celda F3, escriba =C3+C4 y, después, presione ENTRAR. \n",null,1,null,"Suma (+) ",null,{"$f":"C3+C4","v":3}]
["Para restar, seleccione la celda F4, escriba =C3-C4 y, después, presione ENTRAR. ",null,2,null,"Resta (-) ",null,{"$f":"C3-C4","v":-1}]
["Para multiplicar, seleccione la celda F5, escriba =C3*C4 y, después, presione ENTRAR.\n",{"$nulls":3},"Multiplicación (*) ",null,{"$f":"C3*C4","v":2}]
["Para dividir, seleccione la celda F6, escriba =C3/C4 y, después, presione ENTRAR.\n",{"$nulls":3},"División (/) ",null,{"$f":"C3/C4","v":0.5}]
["Mire esto: cambie los números en las celdas C3 y C4 y vea cómo los resultados de las fórmulas cambian automáticamente.",{"$nulls":3},"Potencia (^) ",null,{"$f":"C3^C4","v":1}]
["CRÉDITO ADICIONAL: Puede elevar un valor a una potencia mediante el operador exponencial (^), por ejemplo =A1^A2. Puede escribirlo con Mayús+^. En la celda F7, escriba =C3^C4."]
["Vaya hacia abajo para obtener más detalles."]
["Siguiente paso"]
["Más información sobre las fórmulas, celdas e intervalos"]
["Excel se compone de celdas individuales que se agrupan en filas y columnas. Las filas están numeradas y las columnas tienen letras. Hay más de 1 millón de filas y 16000 columnas, y se pueden incluir fórmulas en cualquiera de ellas. \n"]
["Las fórmulas pueden contener referencias a celdas, referencias a intervalos de celdas, operadores y constantes. Estos son algunos ejemplos de fórmulas:\n\n=A1+B1\n=10+20\n=SUMA(A1:A10)\n\n"]
["Observará que, en el tercer ejemplo anterior, usamos la función SUMA. Una función es un comando predefinido que toma valores, los calcula de alguna forma y devuelve un resultado. Por ejemplo, la función SUMA toma las referencias de celda o intervalos que especifique y los suma. En este ejemplo toma las celdas A1 a A10 y las suma. Excel tiene más de 400 funciones que puede explorar en la pestaña Fórmulas.\n"]
["Las fórmulas con funciones empiezan con un signo igual, seguido del nombre de la función con los argumentos (los valores que usa una función para calcular) entre paréntesis. \n"]
["Para confirmar una fórmula, presione ENTRAR. Cuando lo haga la fórmula se calculará y el resultado se mostrará en la celda. Para ver la propia fórmula, puede ver la barra de fórmulas debajo de la cinta de opciones, o presionar F2 para entrar en el Modo de edición, donde verá la fórmula en la celda. Presione ENTRAR de nuevo para finalizar la fórmula y calcular el resultado.\n\n"]
["Información sobre algunas fórmulas"]
["=10+20 es una fórmula, donde 10 y 20 son constantes y el signo + es el operador."]
["=SUM(A1:A10) es una fórmula, donde SUMA es el nombre de función, los paréntesis de apertura y cierre contienen los argumentos de la fórmula y A1:A10 es el intervalo de celdas de la función."]
["=SUM(A1:A10;C1:C10) es una fórmula, donde SUMA es el nombre de función, los paréntesis de apertura y cierre contienen los argumentos de la fórmula y A1:A10;C1:C10 son los intervalos de celdas de la función separados por una coma."]
["INFORMACIÓN ÚTIL: Las constantes son valores que especifica en las celdas o fórmulas. Mientras que =10+20 puede calcular lo mismo que =A1+B1, no se recomienda usar constantes. ¿Por qué? Porque no puede ver fácilmente la constante sin seleccionar la celda y buscarla. Eso puede dificultar cambiarla más adelante. Es mucho más fácil colocar las constantes en celdas, donde pueden ajustarse fácilmente, y hacer referencia a ellas en las fórmulas.\n\nPor ejemplo: Seleccione la celda amarilla con 12 a continuación. Verá que usamos la función SUMA con un intervalo de celdas. No escriba \"4\" o \"8\" directamente en la fórmula. \n"]
["Anterior"]
["Siguiente"]
["Más información en la Web"]
["Usar Excel como una calculadora"]
["Información general sobre fórmulas en Excel"]
["Funciones de Excel (por categoría) "]
["Funciones de Excel (orden alfabético) "]
["Aprendizaje gratuito de Excel en línea"]
{"$rows_empty":10}
[{"$nulls":9},"Valores"]
[{"$nulls":9},4]
[{"$nulls":9},8]
[{"$nulls":9},{"$f":"SUM(J41:J42)","v":12}]

{"sheet":"Introducción a las funciones","index":2,"n_rows":51,"n_cols":7,"rows_kept":51}
["Introducción a las funciones"]
["Las funciones le permiten hacer varias tareas, como realizar operaciones matemáticas, buscar valores o incluso calcular fechas y horas. Probemos varias formas de sumar valores con la función SUMA.",null,"Fruta","Importe",null,"Carnicería","Importe"]
["En la columna de Cantidad de Fruta (celda D7), escriba =SUMA(D3:D6), o escriba =SUMA (, después seleccione el intervalo con el mouse y presione ENTRAR. Esto sumará los valores de las celdas D3, D4, D5 y D6. La respuesta debería ser 170.\n",null,"Manzanas",50,null,"Ternera",50]
["Ahora vamos a probar Autosuma. Seleccione la celda en la columna de Carne (celda G7) y vaya a Fórmulas > Autosuma > seleccione SUMA. Verá que Excel escribe automáticamente la fórmula. Presione ENTRAR para confirmar. La característica Autosuma tiene todas las funciones más comunes.\n",null,"Naranjas",20,null,"Pollo",30]
["Este es un método abreviado de teclado muy útil. Seleccione la celda D15, después presione Alt = y luego ENTRAR. SUMA se introducirá automáticamente.",null,"Plátanos",60,null,"Cerdo",10]
["Vaya hacia abajo para obtener más detalles.",null,"Limones",40,null,"Pescado",50]
["CRÉDITO ADICIONAL\nPruebe la función CONTAR con cualquiera de los métodos que ya probó. La función CONTAR cuenta el número de celdas de un rango que contienen números.",null,"SUMA > ",{"$f":"SUM(D3:D6)","v":170},null,"SUMA > "]
["Siguiente paso"]
["Más información sobre funciones",null,"Elemento","Importe",null,"Elemento","Importe"]
["Vaya a la pestaña Fórmulas y examine la Biblioteca de funciones, donde se muestran las funciones por categorías, como Texto, Fecha y hora, etc. Insertar función le permitirá buscar funciones por nombre y abrir a un asistente de funciones que puede ayudarle a crear la fórmula. \n\nCuando empiece a escribir un nombre de función después de presionar =, Excel abrirá IntelliSense, que mostrará todas las funciones empezando con las letras que escriba. Cuando encuentre la que desee, presione la tecla Tab y Excel completará automáticamente el nombre de la función y escribirá el paréntesis de apertura. También mostrará los argumentos necesarios y opcionales. \n\n\n\nAhora vamos a ver la anatomía de algunas funciones. La función SUMA está estructurada así:",null,"Pan",50,null,"Pan",50]
["Si la función SUMA pudiese hablar, diría que devuelve la suma de todos los valores de las celdas D35 a D38 y toda la columna H. SUMA es el nombre de la función, D35:D38 es el primer argumento de intervalo, que casi siempre es obligatorio, y H:H es el segundo argumento de intervalo, separados por comas. Ahora, vamos a probar una que no necesita argumentos.\n",null,"Donuts",100,null,"Donuts",100]
["La función HOY devuelve la fecha actual. Cuando Excel vuelva a calcular se actualizará automáticamente.",null,"Galletas",40,null,"Galletas",40]
["MIRE ESTO\nSeleccione estas celdas. Después, en la esquina inferior derecha de la ventana de Excel, busque SUMAR: 170 en la barra de la parte inferior. Esa es la Barra de estado y es otra manera de encontrar rápidamente un total y otros detalles sobre una celda o intervalo seleccionado. ",null,"Pasteles",50,null,"Pasteles",50]
["DETALLE IMPORTANTE\nHaga doble clic en esta celda. Verá el 100 hacia el final. Aunque es posible colocar números en una fórmula de este modo, no es recomendable a menos que sea absolutamente necesario. Esto se conoce como una constante y es fácil olvidar que está ahí. En cambio, se recomienda hacer referencia a otra celda, como la celda F51. De esta forma, se ve fácilmente y no se oculta dentro de una fórmula. ",null,"Tartas",20,null,"Tartas",20]
["Más información en la Web",null,"SUMA > ",null,null,"CONTAR >"]
["Todo sobre la función SUMA"]
["Usar Autosuma para sumar números"]
["Todo sobre la función CONTAR"]
["Aprendizaje gratuito de Excel en línea"]
["Volver al principio"]
["Siguiente paso"]
{"$rows_empty":12}
[null,null,"Fruta","Importe"]
[null,null,"Manzanas",50]
[null,null,"Naranjas",20]
[null,null,"Plátanos",60]
[null,null,"Limones",40]
[null,null,"SUMA > ",{"$f":"SUM(D35:D38)","v":170}]
[]
[]
[]
[]
[null,null,"Elemento","Importe"]
[null,null,"Automóviles",20]
[null,null,"Camiones",10]
[null,null,"Bicicletas",10]
[null,null,"Patines",40]
[]
[{"$nulls":3},"Total:",null,"Valor adicional","Nuevo total"]
[{"$nulls":3},{"$f":"SUM(D45:D48,100)","v":180},null,100,{"$f":"SUM(D45:D48,F51)","v":180}]

{"sheet":"PROMEDIO","index":3,"n_rows":15,"n_cols":7,"rows_kept":15}
["Función PROMEDIO"]
["Use la función PROMEDIO para obtener el promedio de números en un intervalo de celdas.",null,"Fruta","Importe",null,"Carnicería","Importe"]
["Seleccione la celda D7 y después use el Autosuma para agregar una función PROMEDIO.",null,"Manzanas",50,null,"Ternera",50]
["Ahora seleccione la celda G7 y escriba una función PROMEDIO escribiendo =PROMEDIO(G3:G6). ",null,"Naranjas",20,null,"Pollo",30]
["En la celda D15, puede usar Autosuma o escribir para introducir otra función PROMEDIO. ",null,"Plátanos",60,null,"Cerdo",10]
["MIRE ESTO\nSeleccione cualquier intervalo de números y después mire la barra de estado para obtener un promedio instantáneo.\n",null,"Limones",40,null,"Pescado",50]
["Activar a la hoja anterior",null,"PROMEDIO >",null,null,"PROMEDIO >"]
["Ir a la siguiente hoja"]
["CRÉDITO ADICIONAL\nPruebe a usar MEDIANA o MODO aquí. \n\nMEDIANA le proporciona el valor central de un conjunto de datos, mientras que \nMODO le proporciona la opción que se produce con más frecuencia.\n",null,"Elemento","Importe",null,"Elemento","Importe"]
["Vínculos para obtener más información en la Web",null,"Pan",50,null,"Pan",50]
["Seleccione esta opción para obtener información en la Web sobre la función PROMEDIO",null,"Donuts",100,null,"Donuts",100]
["Seleccione esta opción para obtener información en la Web sobre la función MEDIANA",null,"Galletas",40,null,"Galletas",40]
["Seleccione esta opción para obtener información en la Web sobre la función MODO",null,"Pasteles",50,null,"Pasteles",50]
["Seleccione esta opción para obtener información en la Web sobre el aprendizaje gratuito de Excel.",null,"Tartas",20,null,"Tartas",20]
[null,null,"PROMEDIO >"]

{"sheet":"MIN y MAX","index":4,"n_rows":15,"n_cols":7,"rows_kept":15}
["Funciones MIN y MAX"]
["Use la función MIN para obtener el número mínimo de un rango de celdas.",null,"Fruta","Importe",null,"Carnicería","Importe"]
["Use la función MAX para obtener el número máximo de un rango de celdas.",null,"Manzanas",50,null,"Ternera",50]
["Seleccione la celda D7 y después use el Asistente de Autosuma para agregar una función MIN.\n",null,"Naranjas",20,null,"Pollo",30]
["Ahora seleccione la celda G7 y escriba una función MAX escribiendo =MAX(G3:G6).\n",null,"Plátanos",60,null,"Cerdo",10]
["En la celda D15, puede usar el Asistente de Autosuma o escribir para introducir una función MIN o MAX. \n",null,"Limones",40,null,"Pescado",50]
["Más información en la Web\n",null,"MIN >",null,null,"MAX >"]
["Todo sobre la función MIN"]
["Todo sobre la función MAX",null,"Elemento","Importe",null,"Elemento","Importe"]
["Aprendizaje gratuito de Excel en línea",null,"Pan",50,null,"Pan",50]
["INFORMACIÓN ÚTIL\nPuede usar MIN o MAX con varios intervalos o valores para mostrar el mayor o menor de los valores, como =MIN(A1:A10;B1:B10) o =MAX(A1:A10;B1), donde B1 contiene un valor de umbral, como 10, en cuyo caso la fórmula no devolverá un resultado menor que 10.\n",null,"Donuts",100,null,"Donuts",100]
[null,null,"Galletas",40,null,"Galletas",40]
[null,null,"Pasteles",50,null,"Pasteles",50]
[null,null,"Tartas",20,null,"Tartas",20]
[null,null,"MIN o MAX >",{"$nulls":3},{"$f":"MIN(G10:G14,10)","v":10}]

{"sheet":"Fecha y hora","index":5,"n_rows":47,"n_cols":6,"rows_kept":47,"merged":[[4,2,4,3],[26,2,26,3],[30,2,30,3],[44,2,44,3]]}
["Funciones de fecha"]
["Excel puede proporcionarle la fecha actual, según la configuración regional de su equipo. También puede agregar y restar fechas."]
["Consulte la función HOY, que proporciona la fecha de hoy. Estas son funciones dinámicas o volátiles, por lo que, al abrir el libro mañana, tendrá la fecha de mañana. En la celda D6, escriba =HOY(). \n"]
["Restar fechas: escriba su siguiente cumpleaños en formato DD-MM-AA en la celda D7 y vea cómo Excel le indica cuántos días faltan usando =D7-D6 en la celda D8.\n"]
["Agregar fechas: supongamos que desea saber en qué fecha vence una factura, o cuándo tiene que devolver un libro de la biblioteca. Puede agregar días a una fecha para obtener la información. En la celda D10, escriba un número de días aleatorio. En la celda D11, hemos agregado =D6+D10 para calcular la fecha de vencimiento a partir de la fecha actual.\n",null,"Funciones de fecha"]
["INFORMACIÓN ÚTIL\nExcel mantiene fechas y horas en función del número de días desde el 1 de enero de 1900. Las horas se conservan en partes fraccionarias de un día basándose en los minutos. Así, 01-01-2017 12:30 se almacena como 42736.5208. Si la hora o fecha aparecen como números como ese, puede presionar Ctrl + 1 > Número y seleccionar un formato de fecha u hora. ",null,"Fecha de hoy:",null,null,{"$f":"IF(D6=TODAY(),\"¡Eso es!\",\"\")","v":""}]
["DETALLE IMPORTANTE\nSi no desea que Excel muestre un número negativo porque aún no ha escrito su cumpleaños, puede usar una función SI así: =SI(D7=\"\";\"\";D7-D6), que dice \"SI D7 es igual a nada, entonces no muestres nada; en caso contrario, muestra D7 menos D6\".\n",null,"Su cumpleaños:"]
["Funciones de hora",null,"Días hasta su cumpleaños:",{"$f":"D7-D6","v":0}]
["Excel puede proporcionarle la hora actual, según la configuración regional de su equipo. También puede agregar y restar horas. Por ejemplo, es posible que deba realizar un seguimiento de cuántas horas trabajó un empleado cada semana, y calcular su paga y las horas extra.\n"]
["En la celda D28, escriba =AHORA(), lo que le dará la hora actual y se actualizará cada vez que Excel calcule. Si necesita cambiar el formato de la hora, puede presionar Ctrl+1 > Número > Hora > y seleccionar el formato que desee.\n",null,"Días del período de gracia:"]
["Sumar horas entre intervalos de tiempo: en la celda D36 hemos escrito =((D35-D32)-(D34-D33))*24, que calcula la hora de inicio y finalización de la jornada de una persona y después resta el tiempo que utilizó para comer. El *24 al final de la fórmula convierte la parte fraccionaria del día que Excel ve en horas. Sin embargo, debe dar formato a la celda como número. Para ello, vaya a Inicio > Formato > Celdas (Ctrl+1) > Número > Número > 2 decimales.\n\n",null,"La factura vence el:",{"$f":"D6+D10","v":"00:00:00"}]
["Si esta fórmula pudiese hablar, diría \"Tome la hora de salida y réstela de la hora de entrada, después reste las horas del almuerzo y multiplique el resultado por 24 para convertir las fracciones de Excel en horas\", o =((Hora de entrada - Hora de salida)-(Vuelta del almuerzo - Salida para el almuerzo))*24."]
["Anterior"]
["Siguiente"]
["Más información en la Web"]
["Todo sobre la función HOY"]
["Todo sobre la función AHORA"]
["Todo sobre la función FECHA"]
["Aprendizaje gratuito de Excel en línea"]
{"$rows_empty":7}
[null,null,"Funciones de hora"]
[null,null,"Hora actual:"]
[]
[]
[null,null,"Horas diarias trabajadas"]
[null,null,"Hora de entrada:","08:00:00"]
[null,null,"Fin del almuerzo:","12:00:00"]
[null,null,"Inicio del almuerzo:","13:00:00"]
[null,null,"Hora de salida:","17:00:00"]
[null,null,"Total de horas:",{"$f":"((D35-D32)-(D34-D33))*24","v":8.000000000000002}]
{"$rows_empty":8}
[null,null,"Fecha y hora estáticas"]
[null,null,"Fecha:","2017-09-27"]
[null,null,"Hora:","08:52:00"]

{"sheet":"Unir texto y números","index":6,"n_rows":37,"n_cols":6,"rows_kept":37,"merged":[[26,2,26,3],[30,2,30,3],[34,2,34,3]]}
["Unir texto en celdas diferentes"]
["Hay muchas ocasiones usando Excel en las que querrá combinar texto en celdas diferentes. Un ejemplo muy común es que puede tener nombres y apellidos, y desea combinarlos como nombre, apellidos o nombre completo. Afortunadamente, Excel nos permite hacerlo con el signo Y comercial (&) que puede escribir con Mayús+6.\n",null,"Nombre","Apellidos","Apellidos, nombre","Nombre completo"]
["En la celda E3, escriba =D3&C3 para unir el nombre y los apellidos. \n",null,"Marina","Rodríguez",{"$f":"D3&\", \"&C3","v":"Rodríguez, Marina"},{"$f":"C3&\" \"&D3","v":"Marina Rodríguez"}]
["Sin embargo RodríguezMarina no parece correcto. Es necesario agregar una coma y un espacio. Para ello, usaremos comillas para crear una nueva cadena de texto. Esta vez, escriba =D3&\"; \"&C3. La parte &\"; \"& nos permite unir una coma y un espacio con el texto en las celdas.\n",null,"Carlos","Espinosa"]
["Para crear el nombre completo, se deberán unir el nombre y los apellidos, pero usar un espacio sin una coma. En F3, escriba =C3&\" \"&D3.\n",null,"Ene","Palacios"]
["Vaya hacia abajo para obtener más detalles.",null,"María","Gómez"]
["Siguiente",null,"Esteban","Torres"]
["Usar texto y números juntos",null,"Óscar","Valentín"]
["Ahora, usaremos el & para unir texto y números, no solo texto y texto\n\nMire las celdas C28:D29. ¿Puede ver que la fecha y la hora están en celdas independientes? Puede combinarlos con el símbolo &, como se muestra en las celdas C32:C33, pero no queda bien, ¿verdad? Desafortunadamente, Excel no sabe cómo desea dar formato a los números, por lo que los divide a su formato más básico, que es la fecha de la serie en este caso. Es necesario que indiquemos explícitamente a Excel cómo dar formato a la parte del número de la fórmula, para que lo muestre como desea en la cadena de texto resultante. Puede hacerlo con la función TEXTO y un código de formato.",null,"Íker","Valladares"]
["En la celda C36, escriba =C28&\" \"&TEXTO(D28;\"DD-MM-AAAA\"). DD-MM-AAAA es el código de formato para el día-mes-año, por ejemplo 25-09-2017.\n",null,"Irene","Robledo"]
["En la celda C37, escriba =C29&\" \"&TEXTO(D29;\"H:MM\"). H:MM es el formato de código de para Horas:Minutos, por ejemplo 13:30.\n\n"]
["MIRE ESTO\nLas fórmulas, especialmente las grandes, pueden resultar difíciles de leer, pero puede dividir los elementos con espacios así:\n\n=C28 & \" \" & TEXTO(D28;\"DD-MM-AAAA\")"]
["VALE LA PENA EXPLORAR\nSi no sabe qué código de formato usar, puede presionar Ctrl+1 > Número para dar formato a la celda que desee. Después seleccione la opción Personalizado. Puede copiar el código de formato que se muestra a la fórmula."]
["Más información en la Web"]
["Todo sobre la función TEXTO"]
["Combinar texto y números"]
["Aprendizaje gratuito de Excel en línea"]
{"$rows_empty":9}
[null,null,"Usar texto y números"]
[null,null,"Fecha de hoy:",{"$f":"TODAY()","v":"2019-10-10"}]
[null,null,"Hora actual:",{"$f":"NOW()","v":43748.466438310184}]
[]
[null,null,"Unir texto y números"]
[null,null,{"$f":"C28&\" \"&D28","v":"Fecha de hoy: 43748"}]
[null,null,{"$f":"C29&\" \"&D29","v":"Hora actual: 43748,4664383102"}]
[]
[null,null,"Dar formato a texto y números"]
[null,null,{"$f":"C28 &\" \"& TEXT(D28,\"DD-MM-AAAA\")","v":"Fecha de hoy: 10-10-2019"}]
[null,null,{"$f":"C29&\" \"&TEXT(D29,\"H:MM\")","v":"Hora actual: 11:11"}]

{"sheet":"Instrucciones SI","index":7,"n_rows":37,"n_cols":6,"rows_kept":37,"merged":[[7,2,7,3]]}
["Instrucciones SI"]
["Las instrucciones SI le permiten realizar comparaciones lógicas entre las condiciones. Por lo general, una instrucción SI indica que, si una condición es verdadera, se realizará una acción, en caso contrario, se realizará otra. Las fórmulas pueden devolver texto, valores o incluso más cálculos."]
["En la celda D9 escriba =SI(C9=\"Manzana\";VERDADERO;FALSO). La respuesta correcta es verdadero. \n"]
["Copie desde la celda D9 hasta la D10. Aquí la respuesta debería ser FALSO porque una naranja no es una manzana.\n"]
["Pruebe otro ejemplo consultando la fórmula en la celda D12. Empezamos con =SI(C12<100;\"Menor que 100\";\"Mayor que o igual a 100\"). ¿Qué ocurre si escribe un número mayor que 100 en la celda C12?\n"]
["DETALLE IMPORTANTE\nVERDADERO y FALSO son, a diferencia de otras palabras en Excel, fórmulas en el sentido de que no tiene que estar entre comillas y Excel las pondrá en mayúscula automáticamente. Los números no tienen que estar entre comillas. El texto normal, como Sí o No tiene que estar entre comillas como aquí: \n=SI(C9=\"manzana\";\"Sí\";\"No\")"]
["Vaya hacia abajo para obtener más detalles"]
["Siguiente",null,"Instrucciones SI"]
["Instrucción SI con otra función",null,"Manzana"]
["Las instrucciones SI pueden forzar cálculos adicionales que se deben realizar si se cumple una condición. Aquí vamos a evaluar una celda para ver si deben aplicarse impuestos sobre las ventas y calcular si la condición es verdadera.\n",null,"Naranja"]
["En la celda F33, hemos escrito = SI(E33=\"Sí\";F31*Impuesto sobre las ventas,0), donde se configura el impuesto sobre las ventas como un rango con nombre con un valor de 0,0825. La fórmula indica que, si la celda E33 es igual a Sí, multiplica la celda F31 por el impuesto sobre las ventas, de lo contrario, devuelve 0.\n\nPruebe a cambiar Sí y No en la celda E33 para ver cómo cambia el cálculo."]
["A continuación, hemos agregado una instrucción SI para calcular los gastos de envío si es necesario. En la celda F35 verá =SI(E35=\"Sí\";SUM(D28:D29)*1.25;0). Esto indica \"Si la celda E35 es igual a Sí, realiza la suma de la columna Cantidad de la tabla anterior y multiplícalo por 1,25, de lo contrario, devuelve 0\".\n",null,50,{"$f":"IF(C12<100,\"Menor que 100\",\"Mayor o igual a 100\")","v":"Menor que 100"}]
["Después, cambie el 1,25 en la fórmula en la celda F35 a \"Envío\". Cuando empiece a escribir, la corrección automática de Excel debería encontrarla automáticamente. Si es así, presione la tecla Tab para escribirla. Esto es un rango con nombre y lo introducimos desde Fórmulas > Asignar nombre. Ahora, si quiere cambiar los gastos de envío, solo tiene que realizar la acción en un lugar y puede usar el nombre de envío en cualquier lugar del libro.\n\n"]
["INFORMACIÓN ÚTIL\nAl crear una fórmula, Excel colocará automáticamente bordes de colores alrededor de los intervalos a los que hace referencia la fórmula y los intervalos correspondientes en la fórmula serán del mismo color. Puede ver esto si selecciona la celda F33 y presiona F2 para modificar la fórmula."]
["SUGERENCIA DEL EXPERTO\nLos rangos con nombre permiten definir términos o valores en un solo lugar y después volver a usarlos en todo un libro. Puede ver todos los rangos con nombre de este libro haciendo clic en Fórmulas > Administrador de nombres. Haga clic aquí para obtener más información.\n"]
["Anterior"]
["Siguiente"]
["Más información en la Web"]
["Todo sobre la función SI"]
["Todo sobre la función SI.CONJUNTO"]
["Instrucciones SI avanzadas"]
["Aprendizaje gratuito de Excel en línea"]
[]
[]
[]
[]
[null,null,"Elemento","Cantidad","Coste","Total"]
[null,null,"Widget",2,{"v":9.760711585683554,"d":"9.76 €"},{"$f":"'Instrucciones SI'!$E$28:$E$29*'Instrucciones SI'!$D$28:$D$29","v":{"v":19.521423171367108,"d":"19.52 €"}}]
[null,null,"Doohickey",3,{"v":3.4189202461080024,"d":"3.42 €"},{"$f":"'Instrucciones SI'!$E$28:$E$29*'Instrucciones SI'!$D$28:$D$29","v":{"v":10.256760738324008,"d":"10.26 €"}}]
[]
[{"$nulls":3},"Subtotal",{"$f":"SUM('Instrucciones SI'!$E$28:$E$29)","v":{"v":13.179631831791557,"d":"13.18 €"}},{"$f":"SUM('Instrucciones SI'!F28:F29)","v":{"v":29.778183909691116,"d":"29.78 €"}}]
[]
[{"$nulls":3},"¿Impuesto sobre las ventas?","Sí",{"$f":"IF(E33=\"Sí\",F31*Impuesto_sobre_las_ventas,0)","v":{"v":2.456700172549517,"d":"2.46 €"}}]
[]
[{"$nulls":3},"¿Envío?","Sí",{"$f":"IF(E35=\"Sí\",SUM(D28:D29)*1.25,0)","v":{"v":6.25,"d":"6.25 €"}}]
[]
[{"$nulls":3},"Total",null,{"$f":"SUM(F33,F31,F35)","v":{"v":38.48488408224063,"d":"38.48 €"}}]

{"sheet":"BUSCARV","index":8,"n_rows":43,"n_cols":7,"rows_kept":43}
["BUSCARV"]
["BUSCARV es una de las funciones más utilizadas en Excel (y también una de nuestras favoritas). BUSCARV le permite buscar un valor en una columna a la izquierda, después devuelve información en otra columna a la derecha si encuentra a una coincidencia. BUSCARV dice:\n"]
["=BUSCARV(A1;B:C;2;FALSO)"]
["¿Qué desea buscar?"]
["Si lo encuentra, ¿a cuántas columnas a la derecha desea que aparezca un valor?"]
["¿Dónde desea buscarlo?"]
["¿Desea a una coincidencia exacta o una aproximada?"]
["En la celda D22, escriba =BUSCARV(C22;C17:D20;2;FALSO). La respuesta correcta para manzanas es 50. BUSCARV buscó manzanas, lo encontró, después fue a la columna de la derecha y devolvió la cantidad.\n\n"]
["Ahora, intente hacerlo en la sección de carnes, en la celda G22. Debería obtener el resultado =BUSCARV(F22;F17:G20;2;FALSO).\n\n"]
["EXPERIMENTO\nIntente seleccionar diferentes elementos de las listas desplegables. Verá que las celdas de resultado se actualizan al instante con los nuevos valores."]
["Vaya hacia abajo para obtener más detalles."]
["Siguiente"]
["BUSCARV y #N/D"]
["Constantemente, se encontrará en una situación donde BUSCARV no puede encontrar lo que ha solicitado y devuelve un error (#N/D). A veces, es simplemente porque el valor de búsqueda no existe, o puede ser porque la celda de referencia todavía no tiene un valor.\n"]
["Si sabe que el valor de búsqueda existe, pero desea ocultar el error si la celda de la búsqueda está en blanco, puede usar una instrucción SI. En este caso, encapsularemos la fórmula BUSCARV existente así en la celda D43:\n\n=SI(C43=\"\";\"\";BUSCARV(C43;C37:D41;2;FALSO))\n\nEsto indica que si la celda C43 es igual a nada (\"\"), devuelve nada, de lo contrario, devuelve resultados de BUSCARV. Tenga en cuenta el segundo paréntesis de cierre al final de la fórmula. Cierra la instrucción SI.\n"]
["Si no sabe con seguridad si existe el valor de búsqueda, pero desea suprimir el error #N/D, puede usar una función de control de errores denominada SI.ERROR en la celda G43: =SI.ERROR(BUSCARV(F43;F37:G41;2;FALSO),\"\"). SI.ERROR indica que si BUSCARV devuelve un resultado válido, mostrarlo, de lo contrario, no mostrar nada (\"\"). No se muestra nada aquí (\"\"), pero también puede usar números (0,1, 2, etc.), o texto, como \"La fórmula no es correcta\".\n",null,"Fruta","Importe",null,"Carnicería","Importe"]
["DETALLE IMPORTANTE\nSI.ERROR es lo que se denomina un controlador de errores global, lo que significa que suprimirá cualquier error que pueda producir la fórmula. Esto puede provocar problemas si Excel le da una notificación de que la fórmula contiene un error legítimo que debe solucionarse.\n\nUna regla general es no agregar controladores de errores en las fórmulas hasta que sepa con total seguridad que funcionan correctamente.",null,"Manzanas",50,null,"Ternera",50]
["Anterior",null,"Naranjas",20,null,"Pollo",30]
["Siguiente",null,"Plátanos",60,null,"Cerdo",10]
["Más información en la Web",null,"Limones",40,null,"Pescado",50]
["Todo sobre la función BUSCARV"]
["Todo sobre las funciones INDICE Y COINCIDIR",null,"Manzanas",null,null,"Cerdo"]
["Todo sobre la función SI.ERROR"]
["Use tablas dinámicas para analizar datos de una hoja de cálculo"]
["Aprendizaje gratuito de Excel en línea"]
{"$rows_empty":9}
[null,null,"Si la función SUMA en la celda D42 pudiera hablar, diría: Sume los valores en las celdas D38, D39, D40 y D41."]
[null,null,"Elemento","Importe",null,"Elemento","Importe"]
[null,null,"Pan",50,null,"Pan",50]
[null,null,"Donuts",100,null,"Donuts",100]
[null,null,"Galletas",40,null,"Galletas",40]
[null,null,"Pasteles",50,null,"Pasteles",50]
[null,null,"Tartas",20,null,"Tartas",20]
[]
[{"$nulls":3},{"$f":"VLOOKUP(C43,C37:D41,2,FALSE)","v":{"$error":"#N/A"}},null,"Pastelería",{"$f":"IFERROR(VLOOKUP(F43,F37:G41,2,FALSE),\"\")","v":""}]

{"sheet":"Funciones condicionales","index":9,"n_rows":123,"n_cols":34,"rows_kept":123}
["Funciones condicionales: SUMAR.SI"]
["Las funciones condicionales le permiten sumar, obtener el promedio, contar u obtener el mínimo o el máximo de un intervalo según una condición determinada o los criterios que especifique. Como, por ejemplo, ¿de todas las frutas en la lista, cuántas son manzanas? O bien, ¿cuántas naranjas son del tipo Florida?",null,"Fruta","Importe",null,"Fruta","Tipo","Importe",{"$nulls":17},"Fruta",null,"Manzanas",null,"Naranjas",null,"Plátanos",null,"Limones"]
["SUMAR.SI le permite sumar en un intervalo según un criterio específico que busca en otro intervalo, como el número de manzanas que tiene. Seleccione la celda D17 y escriba =SUMAR.SI(C3:C14;C17;D3:D14). SUMAR.SI está estructurada así:",null,"Manzanas",50,null,"Manzanas","Fuji",50,{"$nulls":17},"Manzanas",null,"Fuji",null,"Florida",null,"Cavendish",null,"Rugoso"]
["=SUMAR.SI(C3:C14;C17;D3:D14)",null,"Naranjas",20,null,"Naranjas","Florida",20,{"$nulls":17},"Naranjas",null,"Manzana paraíso",null,"Ombligo",null,"Bizcocho de soletilla",null,"Eureka"]
["¿Qué intervalo desea ver?",null,"Plátanos",60,null,"Plátanos","Cavendish",60,{"$nulls":17},"Plátanos"]
["¿Qué valor (texto o número) desea buscar?",null,"Limones",40,null,"Limones","Rugoso",40,{"$nulls":17},"Limones"]
["¿Para cada coincidencia, en qué intervalo desea sumar?",null,"Manzanas",50,null,"Manzanas","Manzana paraíso",50]
["SUMAR.SI.CONJUNTO es lo mismo que SUMAR.SI, pero le permite usar varios criterios. Así, en este ejemplo, puede buscar frutas y tipos, en lugar de solo frutas. Seleccione la celda H17 y escriba =SUMAR.SI.CONJUNTO(H3:H14;F3:F14;F17;G3:G14;G17). SUMAR.SI.CONJUNTO está estructurada así:\n",null,"Naranjas",20,null,"Naranjas","Ombligo",20]
["=SUMAR.SI(H3:H14;F3:F14;F17;G3:G14;G17)",null,"Plátanos",60,null,"Plátanos","Bizcocho de soletilla",60]
["¿Qué intervalo desea sumar?",null,"Limones",40,null,"Limones","Eureka",40]
["Este es el primer intervalo para buscar coincidencias",null,"Manzanas",50,null,"Manzanas","Manzana paraíso",50]
["Estos son los criterios de la primera coincidencia",null,"Naranjas",20,null,"Naranjas","Ombligo",20]
["Este es el segundo intervalo para buscar coincidencias",null,"Plátanos",60,null,"Plátanos","Cavendish",60]
["Estos son los criterios de la segunda coincidencia",null,"Limones",40,null,"Limones","Eureka",40]
["SUGERENCIA DEL EXPERTO\nCada una de las celdas de frutas y tipos tiene una lista desplegable donde puede seleccionar diferentes frutas. Pruébelo y vea cómo se actualizan automáticamente las fórmulas."]
["Vaya hacia abajo para obtener más detalles.",null,"Fruta","SUMAR.SI",null,"Fruta","Tipo","SUMAR.SI.CONJUNTO"]
["Siguiente paso",null,"Manzanas",null,null,"Naranjas","Florida"]
["Funciones condicionales: CONTAR.SI"]
["CONTAR.SI y CONTAR.SI.CONJUNTO le permiten contar valores de un intervalo según unos criterios que especifique. Son un poco diferentes de las otras funciones SI y SI.CONJUNTO, porque solo tienen criterios y un intervalo de criterios. No evalúan un intervalo y después buscan en otro para resumir."]
["Seleccione la celda D64 y escriba =CONTAR.SI(C50:C61;C64). CONTAR.SI está estructurada así:"]
[{"$f":"COUNTIF(C50:C61,C64)","v":3}]
["¿Qué intervalo desea ver?"]
["¿Qué valor (texto o número) desea buscar?"]
["CONTAR.SI.CONJUNTO es lo mismo que SUMAR.SI, pero le permite usar varios criterios. Así, en este ejemplo, puede buscar frutas y tipos, en lugar de solo frutas. Seleccione la celda H64 y escriba =CONTAR.SI.CONJUNTO(F50:F61;F64;G50:G61;G64). CONTAR.SI.CONJUNTO está estructurada así:\n"]
[{"$f":"COUNTIFS(F50:F61,F64,G50:G61,G64)","v":1}]
["Este es el primer intervalo para contar"]
["Estos son los criterios de la primera coincidencia"]
["Este es el segundo intervalo para contar"]
["Estos son los criterios de la segunda coincidencia"]
["Vaya hacia abajo para obtener más detalles."]
["Siguiente"]
["Más funciones condicionales"]
["Ya sabe SUMAR.SI, SUMAR.SI.CONJUNTO, CONTAR.SI y CONTAR.SI.CONJUNTO. Ahora puede probar por su cuenta otras funciones, como PROMEDIO.SI.CONJUNTO, MAX.SI.CONJUNTO, MIN.SI.CONJUNTO. Están estructuradas del mismo modo, por lo que cuando reciba una fórmula escrita, simplemente puede cambiar el nombre de la función por la que desee. Hemos preparado todas las funciones que necesitará para la celda E106, por lo que puede copiar y pegar estas, o intentar escribirlas usted para la práctica.\n\nSUMAR.SI \t=SUMAR.SI(C92:C103;C106;E92:E103) \nSUMAR.SI.CONJUNTO \t=SUMAR.SI.CONJUNTO(E92:E103;C92:C103;C106;D92:D103;D106) \nPROMEDIO.SI \t=PROMEDIO.SI(C92:C103;C106;E92:E103) \nPROMEDIO.SI.CONJUNTO\t=PROMEDIO.SI.CONJUNTO(E92:E103;C92:C103;C106;D92:D103;D106)\nCONTAR.SI \t=CONTAR.SI(C92:C103;C106)\nCONTAR.SI.CONJUNTO \t=CONTAR.SI.CONJUNTO(C92:C103;C106;D92:D103;D106) \nMAX.SI.CONJUNTO \t=MAX.SI.CONJUNTO(E92:E103;C92:C103;C106;D92:D103;D106)\nMIN.SI.CONJUNTO \t=MAX.SI.CONJUNTO(E92:E103;C92:C103;C106;D92:D103;D106)\n"]
["Vaya hacia abajo para obtener más detalles."]
["Siguiente"]
["SUMAR.SI con un argumento de valor"]
["Este es un ejemplo de la función SUMAR.SI con mayor (>) para encontrar todos los valores mayores de un determinado importe:"]
[{"$f":"SUMIF(D118:D122,\">=50\")","v":200}]
["Sume algunos valores basados en este criterio:"]
["...Busque en estas celdas...\n "]
["...y, si el valor es mayor que 50, súmelo.\n "]
["NOTA: Si nota que realiza muchas fórmulas condicionales, es posible que una tabla dinámica sea una solución mejor. Consulte este artículo sobre tablas dinámicas para obtener más información."]
["Más información en la Web"]
["Todo sobre la función SUMAR.SI"]
["Todo sobre la función SUMAR.SI.CONJUNTO"]
["Todo sobre la función CONTAR.SI"]
["Todo sobre la función CONTAR.SI.CONJUNTO"]
["Todo sobre la función PROMEDIO.SI"]
["Todo sobre la función PROMEDIO.SI.CONJUNTO",null,"Fruta","Importe",null,"Fruta","Tipo","Importe"]
["Todo sobre la función MIN.SI.CONJUNTO",null,"Manzanas",50,null,"Manzanas","Fuji",50]
["Todo sobre la función MAX.SI.CONJUNTO",null,"Naranjas",20,null,"Naranjas","Florida",20]
["Crear una lista desplegable",null,"Plátanos",60,null,"Plátanos","Cavendish",60]
["Aprendizaje gratuito de Excel en línea",null,"Limones",40,null,"Limones","Rugoso",40]
["Volver al principio",null,"Manzanas",50,null,"Manzanas","Manzana paraíso",50]
["Siguiente",null,"Naranjas",20,null,"Naranjas","Ombligo",20]
[null,null,"Plátanos",60,null,"Plátanos","Bizcocho de soletilla",60]
[null,null,"Limones",40,null,"Limones","Eureka",40]
[null,null,"Manzanas",50,null,"Manzanas","Manzana paraíso",50]
[null,null,"Naranjas",20,null,"Naranjas","Ombligo",20]
[null,null,"Plátanos",60,null,"Plátanos","Cavendish",60]
[null,null,"Limones",40,null,"Limones","Eureka",40]
[]
[null,null,"Fruta","CONTAR.SI",null,"Fruta","Tipo","CONTAR.SI.CONJUNTO"]
[null,null,"Manzanas",{"$f":"COUNTIF(C50:C61,C64)","v":3},null,"Naranjas","Florida",{"$f":"COUNTIFS(F50:F61,F64,G50:G61,G64)","v":1}]
{"$rows_empty":26}
[null,null,"Fruta","Tipo","Importe"]
[null,null,"Manzanas","Fuji",50]
[null,null,"Naranjas","Florida",20]
[null,null,"Plátanos","Cavendish",60]
[null,null,"Limones","Rugoso",40]
[null,null,"Manzanas","Manzana paraíso",50]
[null,null,"Naranjas","Ombligo",20]
[null,null,"Plátanos","Bizcocho de soletilla",60]
[null,null,"Limones","Eureka",40]
[null,null,"Manzanas","Manzana paraíso",50]
[null,null,"Naranjas","Ombligo",20]
[null,null,"Plátanos","Cavendish",60]
[null,null,"Limones","Eureka",40]
[]
[null,null,"Fruta","Tipo","Inténtelo"]
[null,null,"Limones","Eureka",{"$f":"AVERAGEIFS(E92:E103,C92:C103,C106,D92:D103,D106)","v":40}]
{"$rows_empty":10}
[null,null,"Elemento","Importe"]
[null,null,"Pan",50]
[null,null,"Donuts",100]
[null,null,"Galletas",40]
[null,null,"Pasteles",50]
[null,null,"Tartas",20]
[{"$nulls":3},{"$f":"SUMIF(D118:D122,\">=50\")","v":200}]

{"sheet":"Asistente para funciones","index":10,"n_rows":14,"n_cols":4,"rows_kept":14}
["Deje que el Asistente para funciones le guíe"]
["Si conoce el nombre de la función que desea, pero no tiene claro cómo crearla, puede usar el Asistente para funciones para obtener ayuda.\n"]
["Seleccione la celda D10 y vaya a Fórmulas > Insertar función > escriba BUSCARV en el cuadro Buscar una función y presione IR. Cuando vea BUSCARV resaltado, haga clic en Aceptar en la parte inferior. Al seleccionar una función en la lista, Excel mostrará la sintaxis.\n"]
["Después escriba los argumentos de función en los cuadros de texto correspondientes. A medida que escriba cada uno, Excel lo evaluará y le mostrará el resultado, con el resultado final en la parte inferior. A medida que escriba cada sección, los criterios para cada argumento aparecerán en la parte inferior del formulario. Haga clic en Aceptar cuando haya terminado, y Excel introducirá la fórmula.\n\n\n",null,"Fruta","Importe"]
["MIRE ESTO\nDebería obtener el resultado =BUSCARV(C10;C5:D8;2;FALSO)",null,"Manzanas",50]
["INFORMACIÓN ÚTIL\nPuede escribir referencias de celdas e intervalos, o seleccionarlos con el mouse.",null,"Naranjas",20]
["INFORMACIÓN ÚTIL\nA medida que escriba la sección de cada argumento, se mostrará la descripción del argumento en la parte inferior del formulario, encima del resultado de la fórmula.\n",null,"Plátanos",60]
["Anterior",null,"Limones",40]
["Siguiente"]
["Más información en la Web",null,"Manzanas",{"$f":"VLOOKUP(C10,C5:D8,2,FALSE)","v":50}]
["Información general sobre fórmulas en Excel"]
["Funciones de Excel (por categoría)"]
["Funciones de Excel (orden alfabético)"]
["Aprendizaje gratuito de Excel en línea"]

{"sheet":"Errores de fórmula","index":11,"n_rows":36,"n_cols":4,"rows_kept":36}
["Corregir errores de fórmula"]
["En algún momento, verá una fórmula que tiene un error, que Excel mostrará con #ErrorName. Los errores pueden ser útiles, ya que indican si algo no funciona, pero pueden ser difíciles de corregir. Afortunadamente, hay varias opciones que pueden ayudarle a localizar el origen del error y corregirlo.\n"]
["Comprobación de errores: vaya a Fórmulas > Comprobación de errores. Se cargará un cuadro de diálogo que le indicará la causa general del error específico. En la celda D9, el error #N/D se debe a que no hay ningún valor coincidente con \"Manzana\". Puede solucionarlo usando un valor que exista, suprimiendo el error con SI.ERROR, o pasarla por alto teniendo en cuenta que desaparecerá cuando usa un valor que exista.\n",null,"Fruta","Importe"]
["Si hace clic en Ayuda sobre este Error, se abrirá un tema de ayuda específico para el mensaje de error. Si hace clic en Mostrar pasos de cálculo, se cargará un cuadro de diálogo de Evaluar fórmula.\n",null,"Manzanas",50]
["Cada vez que haga clic en Evaluar, Excel analizará la fórmula sección por sección. No siempre indicará por qué se produce un error, pero si señalará dónde. Desde allí, observe el tema de ayuda para deducir qué ha fallado en la fórmula.\n",null,"Naranjas",20]
["EXPERIMENTO\n¿Qué está mal aquí? Sugerencia: Intentamos hacer una SUMA de todos los elementos.",null,"Plátanos",60]
["INFORMACIÓN ÚTIL\nHacer clic en Opciones le permite establecer las reglas para cuando se muestran o se pasan por alto errores en Excel.\n",null,"Limones",40]
["Anterior"]
["Siguiente",null,"Manzana",{"$f":"VLOOKUP(C9,C3:D7,2,FALSE)","v":{"$error":"#N/A"}}]
["Más información en la Web"]
["Detectar errores en fórmulas"]
["Cómo evitar fórmulas rotas"]
["Evaluar paso a paso una fórmula anidada"]
["Aprendizaje gratuito de Excel en línea"]
{"$rows_empty":15}
[null,null,"Fruta","Importe"]
[null,null,"Manzanas",50]
[null,null,"Naranjas",20]
[null,null,"Plátanos",60]
[null,null,"Limones",40]
[]
[null,null,"Total",{"$f":"sume(D31:D34)","v":{"$error":"#NAME?"}}]

{"sheet":"Obtener más información","index":12,"n_rows":6,"n_cols":1,"rows_kept":6}
["¿Tiene más preguntas sobre Excel?"]
["Presione ALT+Q y escriba lo que quiera saber."]
["Continuemos. Hay más que aprender con Excel:"]
["LinkedIn Learning: Cursos de vídeo para todos los niveles, desde principiante a avanzado. Llévelo a su ritmo.\n"]
["Comunidad: Formule preguntas y conéctese con otros aficionados a Excel.\n"]
["¿Más novedades?\nLos suscriptores de Office 365 obtienen actualizaciones continuas y nuevas características.\n\n"]